bitfinex-derivatives/quotes_SOLF0:USTF0_20251006
["timestamp","ask_amount","ask_price","bid_price","bid_amount"]
[1759775546160,1.93133467,235.86,235.78,7.97]
[1759775546361,16.32,235.87,235.78,7.97]
[1759775546659,1.93133467,235.86,235.78,7.97]
[1759775546963,1.93133467,235.86,235.79,3.8146]
[1759775547567,1.93133467,235.83,235.76,0.14067]
[1759775548366,3.8142,235.82,235.76,0.14067]
[1759775548561,1.93133467,235.8,235.76,0.14067]
[1759775553661,5.74593467,235.8,235.76,0.14067]
[1759775554462,1.93133467,235.8,235.76,0.14067]
[1759775554664,3.8141,235.82,235.76,0.14067]
[1759775554874,104.04,235.81,235.77,7.97]
[1759775555067,109.78513467,235.84,235.77,7.97]
[1759775555268,109.78513467,235.84,235.76,3.95577]
[1759775557766,1.93133467,235.81,235.76,0.14067]
[1759775558370,3.8141,235.83,235.76,0.14067]
[1759775558670,1.93133467,235.84,235.76,7.55067]
[1759775558973,75.67133467,235.84,235.79,3.8146]
[1759775559169,75.67133467,235.84,235.8,7.41]
[1759775559366,75.67133467,235.84,235.76,7.55067]
[1759775559776,73.74,235.84,235.78,3.8147]
[1759775562176,5.74513467,235.85,235.78,3.8147]
[1759775563478,74.70513467,235.85,235.78,3.8147]
[1759775564182,109.70513467,235.85,235.78,3.8147]
[1759775564784,109.68513467,235.85,235.78,3.8147]
[1759775565992,5.74513467,235.85,235.78,3.8147]
[1759775566183,107.7538,235.85,235.78,3.8147]
[1759775566380,1.93133467,235.84,235.78,3.8147]
[1759775566983,1.93133467,235.81,235.76,7.55067]
[1759775568090,1.93133467,235.81,235.76,7.73067]
[1759775568289,1.93133467,235.81,235.76,0.14067]
[1759775569193,5.74623467,235.78,235.76,0.14067]
[1759775569384,104.04,235.77,235.76,0.14067]
[1759775570382,5.74623467,235.78,235.76,0.14067]
[1759775570583,104.02,235.77,235.76,7e-05]
[1759775572395,104.44,235.77,235.76,7e-05]
[1759775573890,0.42,235.77,235.76,7e-05]
[1759775574091,104.42,235.77,235.76,7e-05]
[1759775574893,104.4,235.77,235.76,7e-05]
[1759775575392,3.8161,235.7,235.65,7.59]
[1759775575693,103.98,235.69,235.65,7.59]
[1759775576294,103.98,235.69,235.63,7.59]
[1759775576691,3.8161,235.7,235.63,7.59]
[1759775576892,107.7964,235.68,235.61,7.59]
[1759775577793,3.8167,235.67,235.61,7.59]
[1759775577999,103.98,235.68,235.57,11.408]
[1759775578203,107.00505612,235.68,235.57,11.408]
[1759775578895,107.00505612,235.68,235.57,7.59]
[1759775579698,3.8174,235.62,235.57,7.59]
[1759775579895,103.98,235.61,235.54,3.8185]
[1759775580199,103.98,235.61,235.55,11.4084]
[1759775581301,103.98,235.61,235.55,7.59]
[1759775582397,103.98,235.61,235.49,3.8194]
[1759775582703,3.02505612,235.59,235.5,7.59]
[1759775583899,3.02505612,235.59,235.47,21.53004337]
[1759775584702,3.8185,235.56,235.47,21.53004337]
[1759775585001,104.04,235.55,235.47,21.53004337]
[1759775585503,104.04,235.55,235.47,17.71024337]
[1759775585699,104.04,235.55,235.46,7.59]
[1759775585700,107.06505612,235.55,235.46,7.59]
[1759775586600,59.3833,235.62,235.46,7.59]
[1759775586808,83.74,235.61,235.46,7.59]
[1759775587198,3.8179,235.59,235.5,11.4093]
[1759775587398,83.74,235.61,235.5,7.59]
[1759775588500,3.8182,235.57,235.5,7.59]
[1759775588699,59.3953,235.57,235.42,7.59]
[1759775589000,59.3977,235.56,235.42,7.59]
[1759775589200,3.8192,235.51,235.42,11.4106]
[1759775589396,3.8192,235.51,235.42,7.59]
[1759775589594,3.02505612,235.54,235.42,7.59]
[1759775590203,59.4077,235.52,235.42,7.59]
[1759775590507,104.32,235.51,235.42,7.59]
[1759775591603,3.8194,235.5,235.42,7.59]
[1759775591800,3.02505612,235.55,235.42,7.59]
[1759775591996,104.36,235.54,235.42,7.59]
[1759775592303,3.8192,235.51,235.43,3.8204]
[1759775592502,104.36,235.54,235.42,7.59]
[1759775593704,3.8195,235.49,235.42,7.59]
[1759775593905,104.38,235.48,235.42,7.59]
[1759775594099,104.38,235.48,235.45,7.59]
[1759775594306,3.02505612,235.56,235.45,7.59]
[1759775594498,3.02505612,235.6,235.45,7.59]
[1759775594698,74.04,235.59,235.45,7.59]
[1759775595402,101.18,235.58,235.45,7.59]
[1759775595600,3.8182,235.57,235.45,7.59]
[1759775596100,6.84275612,235.6,235.5,3.8193]
[1759775596408,104.58,235.59,235.5,11.4093]
[1759775596603,105.31904964,235.59,235.5,11.4093]
[1759775597097,104.54,235.58,235.53,7.59]
[1759775597306,104.54,235.58,235.52,11.409]
[1759775597907,105.39904964,235.59,235.52,11.409]
[1759775598400,105.39904964,235.59,235.52,7.59]
[1759775598595,3.818,235.58,235.52,7.59]
[1759775599102,105.39904964,235.59,235.52,7.59]
[1759775599706,3.8177,235.61,235.52,7.59]
[1759775600006,83.92,235.61,235.52,7.59]
[1759775600305,83.92,235.61,235.52,11.409]
[1759775601306,83.92,235.61,235.52,7.59]
[1759775601499,83.92,235.61,235.49,3.8193]
[1759775601901,3.8179,235.59,235.49,3.8193]
[1759775603105,3.8182,235.58,235.49,3.8193]
[1759775604797,3.02505612,235.6,235.48,7.9]
[1759775605003,3.02505612,235.6,235.33,64.20049579]
[1759775605004,62.42265612,235.56,235.42,7.9]
[1759775605403,3.8192,235.51,235.42,7.9]
[1759775605706,104.62,235.51,235.42,7.9]
[1759775606709,3.8195,235.5,235.42,7.9]
[1759775607409,3.8195,235.5,235.42,11.7205]
[1759775610506,104.62,235.51,235.42,11.7205]
[1759775610706,104.62,235.51,235.44,3.8203]
[1759775610901,104.54,235.5,235.44,3.8203]
[1759775611507,104.52,235.5,235.44,3.8203]
[1759775613210,104.48,235.5,235.44,3.8203]
[1759775613602,104.48,235.5,235.36,7.9]
[1759775614710,3.8198,235.48,235.39,3.8209]
[1759775614907,3.8198,235.48,235.39,11.7209]
[1759775616609,104.48,235.5,235.39,7.9]
[1759775617203,3.8201,235.45,235.39,7.9]
[1759775617402,104.48,235.5,235.39,7.9]
[1759775618106,59.3849,235.61,235.38,7.77]
[1759775618308,69.60667401,235.55,235.38,7.77]
[1759775618511,1.06161789,235.54,235.38,7.77]
[1759775618709,1.06161789,235.54,235.37,59.4438]
[1759775618710,1.06161789,235.54,235.4,7.77]
[1759775618903,3.8191,235.52,235.45,3.8201]
[1759775619110,3.8191,235.52,235.45,11.5901]
[1759775620214,65.52,235.55,235.45,11.5901]
[1759775620215,3.8187,235.54,235.45,11.5901]
[1759775620410,368.5249,235.61,235.39,62.46375612]
[1759775620411,3.02505612,235.6,235.48,7.77]
[1759775620610,104.52,235.59,235.48,7.77]
[1759775620818,1.06136724,235.58,235.48,7.77]
[1759775621510,3.8186,235.55,235.48,11.5895]
[1759775622617,108.3586,235.55,235.48,11.5895]
[1759775623117,3.8188,235.54,235.48,7.77]
[1759775625917,104.52,235.55,235.49,3.8195]
[1759775626315,309.14,235.61,235.47,6.55033279]
[1759775626517,1.0612523,235.6,235.54,3.8186]
[1759775626710,104.54,235.6,235.53,7.77]
[1759775627416,104.54,235.6,235.53,11.5887]
[1759775628910,104.54,235.6,235.55,3.8184]
[1759775629116,104.54,235.6,235.56,7.79]
[1759775629318,104.54,235.6,235.55,3.8184]
[1759775629518,104.54,235.6,235.56,7.79]
[1759775629917,104.54,235.6,235.55,3.8184]
[1759775630118,104.54,235.6,235.56,7.79]
[1759775630321,104.46,235.6,235.56,7.79]
[1759775630819,104.46,235.6,235.55,3.8184]
[1759775631020,104.46,235.6,235.56,7.79]
[1759775631317,104.46,235.6,235.55,3.8184]
[1759775631519,104.46,235.6,235.56,7.79]
[1759775632422,104.46,235.6,235.55,3.8184]
[1759775632721,3.02505612,235.7,235.54,7.79]
[1759775633020,104.4,235.69,235.55,7.79]
[1759775633322,1.06091462,235.68,235.55,7.79]
[1759775633519,4.87731462,235.68,235.59,3.8177]
[1759775633922,3.8164,235.68,235.59,3.8177]
[1759775635117,3.8164,235.68,235.61,3.8175]
[1759775635322,3.8164,235.68,235.61,11.6075]
[1759775636524,104.4,235.69,235.59,7.79]
[1759775636817,10.69142624,235.75,235.59,7.79]
[1759775637020,105.44068587,235.74,235.59,7.79]
[1759775637321,0.73864179,235.73,235.59,7.79]
[1759775637521,59.363,235.7,235.57,11.31527667]
[1759775637720,104.4,235.69,235.57,7.79]
[1759775638125,3.817,235.65,235.57,11.608]
[1759775638324,104.4,235.64,235.57,11.608]
[1759775638523,104.4,235.64,235.57,7.79]
[1759775639724,104.4,235.64,235.58,3.8179]
[1759775639919,104.4,235.64,235.56,1.93634559]
[1759775640115,104.4,235.64,235.57,7.79]
[1759775640722,104.4,235.64,235.6,3.8177]
[1759775640922,104.4,235.64,235.6,11.6077]
[1759775641218,3.8175,235.62,235.55,7.79]
[1759775641423,5.75384559,235.62,235.55,7.79]
[1759775641616,1.93634559,235.62,235.55,7.79]
[1759775642021,104.4,235.64,235.55,7.79]
[1759775642325,106.33634559,235.64,235.55,7.79]
[1759775644121,3.8172,235.63,235.55,11.6083]
[1759775644320,106.33634559,235.64,235.55,7.79]
[1759775644727,1.93634559,235.64,235.55,7.79]
[1759775644926,104.32,235.63,235.56,3.8182]
[1759775646231,3.8175,235.62,235.55,7.79]
[1759775651830,106.25634559,235.63,235.56,3.8183]
[1759775653236,110.07364559,235.63,235.56,3.8183]
[1759775654138,3.8175,235.62,235.56,3.8183]
[1759775657438,3.8177,235.6,235.55,7.79]
[1759775657635,1.93634559,235.57,235.51,7.79]
[1759775657834,104.08,235.56,235.51,7.79]
[1759775658541,107.8985,235.56,235.51,7.79]
[1759775659239,107.8985,235.56,235.5,11.4792]
[1759775661639,59.368,235.68,235.52,1.93634559]
[1759775661838,86.65634559,235.67,235.56,7.66]
[1759775662538,3.817,235.65,235.56,7.66]
[1759775662839,1.93634559,235.64,235.56,7.66]
[1759775663537,5.75354559,235.64,235.56,7.66]
[1759775664739,3.8172,235.64,235.56,7.66]
[1759775664941,104.14,235.63,235.56,7.66]
[1759775665342,104.14,235.63,235.56,11.18527667]
[1759775665734,3.8167,235.67,235.57,7.66]
[1759775665933,37.02,235.66,235.58,7.66]
[1759775666135,37.02,235.66,235.58,13.12162226]
[1759775666640,37.02,235.66,235.58,9.59634559]
[1759775668240,3.816,235.71,235.6,7.66]
[1759775668440,104.14,235.7,235.6,7.66]
[1759775669538,104.14,235.7,235.61,3.8175]
[1759775670644,3.8162,235.69,235.6,11.18527667]
[1759775671244,104.14,235.7,235.62,3.8174]
[1759775672343,106.07634559,235.7,235.62,3.8174]
[1759775672745,1.93634559,235.7,235.62,7.34267667]
[1759775672938,104.1,235.69,235.62,3.52527667]
[1759775673140,104.1,235.69,235.61,3.52527667]
[1759775674642,104.1,235.69,235.61,7.34277667]
[1759775677347,104.1,235.69,235.61,3.8175]
[1759775679850,104.1,235.69,235.62,3.8172]
[1759775680344,5.75254559,235.7,235.62,3.8172]
[1759775680550,103.94,235.68,235.62,3.8172]
[1759775681348,103.92,235.67,235.62,11.3172]
[1759775681543,103.92,235.67,235.63,7.5]
[1759775682650,105.85634559,235.67,235.6,3.52527667]
[1759775682839,1.93634559,235.64,235.56,3.52527667]
[1759775683042,1.93634559,235.64,235.55,11.02527667]
[1759775683238,5.75344559,235.64,235.55,11.02527667]
[1759775684143,5.75344559,235.64,235.55,7.5]
[1759775684640,5.75344559,235.64,235.55,11.3185]
[1759775685043,3.8174,235.62,235.55,11.3185]
[1759775685244,103.9,235.61,235.55,11.3185]
[1759775686750,103.9,235.61,235.53,7.34407667]
[1759775687145,103.9,235.61,235.53,3.8188]
[1759775687450,103.9,235.61,235.54,3.52527667]
[1759775687652,105.83634559,235.61,235.54,3.52527667]
[1759775688653,3.8177,235.6,235.54,3.52527667]
[1759775688853,3.8177,235.6,235.52,11.02527667]
[1759775689049,3.8177,235.6,235.52,7.5]
[1759775690651,1.93634559,235.58,235.5,3.52527667]
[1759775691552,5.75444559,235.58,235.5,3.52527667]
[1759775693152,5.75444559,235.58,235.5,11.09527667]
[1759775693355,5.75444559,235.58,235.5,7.57]
[1759775697555,1.93634559,235.58,235.5,7.57]
[1759775697757,1.93634559,235.55,235.47,7.57]
[1759775697960,103.8,235.54,235.47,7.57]
[1759775698662,3.8189,235.53,235.47,7.57]
[1759775698867,103.8,235.54,235.47,7.57]
[1759775699668,107.6188,235.54,235.47,7.57]
[1759775700468,3.819,235.53,235.47,7.57]
[1759775701667,103.82,235.52,235.46,11.3899]
[1759775705073,3.819,235.53,235.46,11.3899]
[1759775705474,15.8,235.52,235.46,11.3899]
[1759775706174,15.8,235.52,235.5,3.8193]
[1759775706376,24.08,235.59,235.51,7.57]
[1759775707078,3.8183,235.57,235.51,7.57]
[1759775707580,27.8979,235.59,235.51,7.57]
[1759775707773,24.08,235.59,235.51,7.57]
[1759775707970,24.08,235.59,235.47,11.09527667]
[1759775708171,24.08,235.59,235.47,7.57]
[1759775708575,3.8185,235.56,235.49,7.57]
[1759775710179,3.02915316,235.62,235.48,7.57]
[1759775710381,89.02,235.61,235.48,7.57]
[1759775710569,67.52324469,235.68,235.48,3.52527667]
[1759775710570,3.02915316,235.64,235.48,3.52527667]
[1759775710771,103.82,235.6,235.49,7.57]
[1759775710970,8.15534469,235.68,235.55,7.57]
[1759775711178,90.46102479,235.67,235.55,7.57]
[1759775711375,89.4,235.67,235.55,7.57]
[1759775712279,11.18449785,235.68,235.56,3.8183]
[1759775712575,103.82,235.67,235.57,7.57]
[1759775713676,3.8167,235.66,235.57,7.57]
[1759775715578,3.8167,235.66,235.57,11.388]
[1759775715876,103.82,235.65,235.57,11.388]
[1759775716976,103.82,235.65,235.57,7.57]
[1759775717178,107.637,235.65,235.57,7.57]
[1759775718774,11.97194469,235.68,235.57,7.57]
[1759775718980,11.97194469,235.68,235.56,7.63]
[1759775719169,11.97194469,235.68,235.56,11.15527667]
[1759775719477,11.97194469,235.68,235.57,7.63]
[1759775719879,8.15534469,235.68,235.62,11.4473]
[1759775721480,8.15534469,235.68,235.62,7.63]
[1759775727684,8.15534469,235.68,235.64,7.63]
[1759775728680,8.15534469,235.68,235.61,3.8175]
[1759775728885,8.15534469,235.68,235.59,7.63]
[1759775729783,3.8166,235.67,235.59,7.63]
[1759775731786,103.78,235.67,235.58,3.52527667]
[1759775732086,103.78,235.67,235.59,7.63]
[1759775732286,103.78,235.67,235.64,7.63]
[1759775732480,103.78,235.67,235.63,3.8171]
[1759775732688,103.78,235.67,235.64,11.4469]
[1759775732887,103.78,235.67,235.64,3.8169]
[1759775733686,103.78,235.67,235.65,7.63]
[1759775734982,103.78,235.67,235.62,3.8174]
[1759775735288,103.78,235.67,235.63,7.63]
[1759775735488,103.78,235.67,235.62,3.8174]
[1759775735684,59.384,235.62,235.54,3.36568258]
[1759775735886,3.02915316,235.55,235.4,4.74699579]
[1759775736090,3.02915316,235.49,235.39,7.63]
[1759775736390,75.08,235.48,235.39,11.451]
[1759775736588,75.08,235.48,235.39,7.63]
[1759775738289,3.02915316,235.54,235.4,7.55]
[1759775738490,13.42,235.53,235.4,7.55]
[1759775738686,1.06130744,235.52,235.46,7.55]
[1759775738883,12.18,235.61,235.48,7.55]
[1759775739084,2.12247809,235.6,235.48,7.55]
[1759775739490,5.94017809,235.6,235.48,7.55]
[1759775740100,5.94001881,235.6,235.48,7.55]
[1759775740289,5.94001881,235.6,235.49,3.8194]
[1759775743301,3.8181,235.58,235.48,7.55]
[1759775743496,6.84725316,235.58,235.48,7.55]
[1759775743996,8.96957197,235.58,235.48,7.55]
[1759775744194,1.06114816,235.57,235.48,7.55]
[1759775744393,6.84725316,235.58,235.48,7.55]
[1759775744592,12.18,235.61,235.48,7.55]
[1759775744593,2.12238216,235.59,235.48,7.55]
[1759775744794,5.05828977,235.6,235.48,7.55]
[1759775745600,5.05828977,235.6,235.5,3.8192]
[1759775745801,5.05828977,235.6,235.51,7.55]
[1759775747693,8.87598977,235.6,235.51,7.55]
[1759775747897,2.12238216,235.59,235.51,7.55]
[1759775748098,5.94008216,235.6,235.51,7.55]
[1759775749100,2.93745168,235.59,235.51,7.55]
[1759775749304,5.05983384,235.59,235.51,11.3691]
[1759775749502,2.12238216,235.6,235.51,11.3691]
[1759775749798,5.05969522,235.6,235.51,11.3691]
[1759775755402,5.05958786,235.6,235.51,11.3691]
[1759775755596,2.93731306,235.6,235.51,11.3691]
[1759775755903,2.93731306,235.6,235.52,3.8188]
[1759775756502,5.05958786,235.6,235.52,3.8188]
[1759775758605,3.8179,235.59,235.52,3.8188]
[1759775758806,5.9401748,235.59,235.52,3.8188]
[1759775758999,3.8179,235.59,235.52,3.8188]
[1759775759302,3.8182,235.58,235.51,7.55]
[1759775759606,2.93605265,235.57,235.5,3.8193]
[1759775760000,5.05832745,235.57,235.5,3.8193]
[1759775760199,3.8184,235.56,235.47,11.4098]
[1759775760404,4.8795374,235.56,235.47,11.4098]
[1759775760707,1.0611374,235.58,235.5,7.59]
[1759775760907,2.93623949,235.61,235.5,7.59]
[1759775761103,5.05845845,235.61,235.52,7.59]
[1759775761498,2.12221896,235.62,235.52,7.59]
[1759775761704,2.93662982,235.62,235.52,7.59]
[1759775761900,5.05884878,235.62,235.52,7.59]
[1759775762810,8.87634878,235.62,235.52,7.59]
[1759775763004,2.12214437,235.61,235.52,7.59]
[1759775763213,59.4168,235.49,235.33,7.59]
[1759775763506,1.93715415,235.4,235.33,7.59]
[1759775763703,368.4495,235.52,235.28,59.4667]
[1759775763704,5.05545092,235.47,235.34,7.59]
[1759775763903,1.93715415,235.45,235.34,7.59]
[1759775764603,1.93715415,235.45,235.35,3.8217]
[1759775766110,312.8591,235.52,235.38,7.59]
[1759775766306,1.93715415,235.5,235.39,7.59]
[1759775766700,1.93715415,235.5,235.42,7.59]
[1759775767307,1.93715415,235.5,235.43,3.8204]
[1759775767506,1.06165413,235.51,235.43,3.8204]
[1759775767702,415.96,235.52,235.43,3.8204]
[1759775768613,309.04,235.52,235.43,3.8204]
[1759775770105,1.061434,235.51,235.43,3.8204]
[1759775770310,309.04,235.52,235.43,3.8204]
[1759775773116,1.06140348,235.51,235.43,3.8204]
[1759775774415,1.06140348,235.51,235.42,7.59]
[1759775774606,4.04424782,235.51,235.42,7.59]
[1759775775014,1.06140348,235.51,235.42,7.59]
[1759775775611,4.88060348,235.51,235.42,7.59]
[1759775776416,1.06140348,235.51,235.42,11.4106]
[1759775777417,1.06140348,235.51,235.45,7.59]
[1759775778021,309.04,235.52,235.46,3.8199]
[1759775779124,1.06134508,235.51,235.46,3.8199]
[1759775779327,1.06134508,235.51,235.47,7.27]
[1759775779825,5.10842278,235.51,235.42,3.8205]
[1759775780124,5.10854268,235.51,235.42,3.8205]
[1759775780325,8.92774268,235.51,235.42,3.8205]
[1759775780524,4.04712997,235.5,235.42,3.8205]
[1759775780726,2.98566499,235.5,235.42,3.8205]
[1759775780922,5.10861054,235.5,235.42,3.8205]
[1759775781427,5.10861054,235.5,235.43,3.8203]
[1759775781727,2.12294555,235.51,235.44,7.27]
[1759775781927,5.10947534,235.51,235.44,7.27]
[1759775782426,5.10947534,235.51,235.4,3.8208]
[1759775782730,3.8197,235.48,235.39,7.27]
[1759775782926,106.46,235.47,235.39,7.27]
[1759775783527,3.82,235.46,235.39,7.27]
[1759775783831,4.88156104,235.46,235.39,7.27]
[1759775784025,1.06156104,235.46,235.4,3.8208]
[1759775784937,1.06156104,235.46,235.39,7.27]
[1759775785130,106.38,235.45,235.39,7.27]
[1759775787832,106.38,235.45,235.33,11.0919]
[1759775787833,1.06160362,235.44,235.33,11.0919]
[1759775788034,4.04677037,235.44,235.33,11.0919]
[1759775788425,2.12334618,235.44,235.33,11.0919]
[1759775788628,5.10813442,235.44,235.33,11.0919]
[1759775789129,3.8208,235.41,235.33,11.0919]
[1759775789324,106.34,235.4,235.33,7.27]
[1759775789526,106.34,235.39,235.33,7.27]
[1759775789736,106.32,235.39,235.33,7.27]
[1759775792937,106.32,235.39,235.3,7.27]
[1759775793525,106.32,235.39,235.32,3.8222]
[1759775795441,106.32,235.39,235.33,11.0919]
[1759775795640,106.32,235.39,235.33,7.27]
[1759775796542,1.94070425,235.48,235.39,3.821]
[1759775796742,106.1,235.45,235.39,3.821]
[1759775797041,106.1,235.45,235.18,5.76520425]
[1759775797042,59.4535,235.34,235.18,5.76520425]
[1759775797235,1.94070425,235.28,235.17,7.26]
[1759775797441,5.0996288,235.31,235.17,7.26]
[1759775797637,1.94070425,235.27,235.17,7.26]
[1759775797833,1.94070425,235.23,235.17,7.26]
[1759775798139,1.94070425,235.23,235.11,7.26]
[1759775798344,1.94070425,235.23,235.12,3.8255]
[1759775798838,64.50070425,235.22,235.12,3.8255]
[1759775799037,62.56,235.22,235.12,3.8255]
[1759775799838,3.8234,235.25,235.14,3.8251]
[1759775800038,108.02,235.24,235.14,3.8251]
[1759775801235,108.34,235.23,235.11,7.26]
[1759775801747,4.7247249,235.25,235.12,3.8254]
[1759775801940,71.26,235.24,235.12,3.8254]
[1759775802245,8.5478249,235.27,235.14,3.8251]
[1759775802448,113.603633,235.26,235.14,3.8251]
[1759775802637,2.12540116,235.25,235.14,3.8251]
[1759775802944,5.94880116,235.25,235.11,11.0855]
[1759775804040,5.94880116,235.25,235.13,3.8253]
[1759775804237,2.12540116,235.25,235.13,3.8253]
[1759775804440,108.52,235.24,235.11,7.26]
[1759775805146,108.52,235.24,235.12,3.8254]
[1759775806145,112.3436,235.24,235.12,3.8254]
[1759775806346,108.52,235.24,235.11,7.26]
[1759775806848,108.52,235.24,235.11,11.0856]
[1759775807050,108.46,235.23,235.11,7.26]
[1759775807546,3.823,235.28,235.15,7.26]
[1759775807741,108.46,235.27,235.15,7.26]
[1759775807946,2.12537568,235.26,235.15,7.26]
[1759775809050,80.94,235.25,235.15,7.26]
[1759775810049,80.94,235.25,235.16,3.8248]
[1759775810444,8.5475249,235.29,235.17,7.43]
[1759775810649,110.56505114,235.28,235.17,7.43]
[1759775810849,1.06252883,235.27,235.17,7.43]
[1759775811047,4.88562883,235.27,235.17,7.43]
[1759775812054,108.34,235.27,235.2,11.2541]
[1759775812951,3.8226,235.3,235.2,11.2541]
[1759775813155,108.34,235.29,235.2,11.2541]
[1759775813354,3.8229,235.28,235.17,11.2546]
[1759775814355,108.34,235.29,235.19,3.8243]
[1759775814548,108.34,235.29,235.16,7.43]
[1759775815554,108.34,235.29,235.21,3.824]
[1759775817551,3.8226,235.31,235.21,3.824]
[1759775817750,108.16,235.3,235.21,3.824]
[1759775818647,12.52614051,235.34,235.22,7.43]
[1759775818648,11.62331561,235.34,235.22,7.43]
[1759775818853,119.70331561,235.34,235.22,7.43]
[1759775820559,2.12462248,235.33,235.24,3.8234]
[1759775822253,5.94682248,235.33,235.22,11.2538]
[1759775823759,3.03460854,235.3,235.18,7.43]
[1759775824750,3.8231,235.27,235.18,11.2545]
[1759775824952,107.98,235.26,235.18,11.2545]
[1759775825164,107.98,235.26,235.18,7.43]
[1759775825855,2.12519174,235.25,235.1,7.43]
[1759775826264,2.12519174,235.25,235.15,3.8249]
[1759775826460,2.12519174,235.25,235.16,7.43]
[1759775827464,5.94859174,235.25,235.16,7.43]
[1759775829167,2.12519174,235.25,235.16,11.2547]
[1759775829353,5.12800327,235.25,235.16,11.2547]
[1759775829860,2.12519174,235.25,235.16,11.2547]
[1759775830262,5.12927518,235.25,235.16,11.2547]
[1759775834068,5.12927518,235.25,235.17,3.8245]
[1759775838667,5.12927518,235.25,235.18,3.8244]
[1759775838866,2.12519174,235.25,235.19,7.2]
[1759775839066,107.46,235.31,235.19,7.2]
[1759775839267,5.14969745,235.3,235.24,11.0234]
[1759775839469,1.06255917,235.29,235.24,3.8234]
[1759775839664,5.14969745,235.3,235.24,11.0234]
[1759775841168,2.12519174,235.29,235.24,11.0234]
[1759775841371,1.06255917,235.28,235.25,7.2]
[1759775841662,5.14969745,235.3,235.24,3.8234]
[1759775841869,3.02450571,235.29,235.25,7.2]
[1759775842069,4.08713828,235.3,235.25,7.2]
[1759775842273,4.08713828,235.3,235.24,3.8234]
[1759775842459,4.08713828,235.3,235.25,7.2]
[1759775842665,4.08713828,235.3,235.24,3.8234]
[1759775842969,4.08713828,235.3,235.26,3.8232]
[1759775843172,4.08713828,235.3,235.27,7.2]
[1759775843665,4.08713828,235.3,235.27,3.8229]
[1759775843865,108.54263257,235.33,235.28,7.2]
[1759775844073,4.09606885,235.32,235.21,7.2]
[1759775844266,4.09606885,235.32,235.25,7.2]
[1759775846170,4.09606885,235.32,235.21,7.2]
[1759775846368,3.03460854,235.31,235.21,7.2]
[1759775846676,3.8232,235.27,235.21,7.2]
[1759775846870,110.47343628,235.26,235.21,7.2]
[1759775847072,3.03343628,235.25,235.21,7.2]
[1759775847863,3.03343628,235.25,235.15,3.8249]
[1759775848068,4.0959835,235.25,235.16,7.2]
[1759775848775,7.9194835,235.25,235.16,7.2]
[1759775848969,3.03343628,235.24,235.16,7.2]
[1759775849667,6.85713628,235.24,235.16,7.2]
[1759775849862,3.03343628,235.23,235.16,7.2]
[1759775850770,4.0959835,235.25,235.16,7.2]
[1759775851172,4.0959835,235.25,235.16,11.0248]
[1759775852281,4.0959835,235.25,235.16,3.8248]
[1759775852479,4.0959835,235.25,235.17,7.2]
[1759775853179,4.0959835,235.25,235.18,3.8244]
[1759775853482,111.3559835,235.25,235.15,7.2]
[1759775853676,3.03343628,235.24,235.15,7.2]
[1759775854574,3.03343628,235.24,235.19,3.8242]
[1759775854978,3.03343628,235.24,235.11,59.5088]